fUSD/lending_fUSD_20240831
["ID","MTS","AMOUNT","RATE_DAILY","PERIOD"]
[336742487,1725096066804,-500.0,0.00038356,120]
[336742488,1725096066853,-635.42,0.00038356,120]
[336742489,1725096066900,-500.0,0.00038356,120]
[336742490,1725096066948,-868.12,0.00038356,120]
[336742491,1725096066995,-500.0,0.00038356,120]
[336742492,1725096067044,-1151.6,0.00038356,120]
[336742493,1725096067092,-500.0,0.00038356,120]
[336742494,1725096067140,-562.37,0.00038356,120]
[336742495,1725096067188,-1582.23,0.00038356,120]
[336742496,1725096067234,-867.17,0.00038356,120]
[336742497,1725096067282,-1256.91,0.00038356,120]
[336742498,1725096067328,-500.0,0.00038356,120]
[336742499,1725096067375,-500.0,0.00038356,120]
[336742500,1725096067422,-500.0,0.00038356,120]
[336742501,1725096067471,-500.0,0.00038356,120]
[336742502,1725096067523,-735.6,0.00038356,120]
[336742503,1725096067577,-2186.79,0.00038356,120]
[336742504,1725096067628,-680.15,0.00038356,120]
[336742505,1725096067678,-4740.51,0.00038356,120]
[336742506,1725096067729,-500.0,0.00038356,120]
[336742507,1725096067782,-601.44,0.00038356,120]
[336742508,1725096067833,-786.8,0.00038356,120]
[336742509,1725096067882,-12860.68,0.00038356,120]
[336742510,1725096067932,-500.0,0.00038356,120]
[336742511,1725096067982,-834.67,0.00038356,120]
[336742512,1725096068031,-500.0,0.00038356,120]
[336742513,1725096068079,-500.0,0.00038356,120]
[336742514,1725096068125,-500.0,0.00038356,120]
[336742515,1725096068172,-500.0,0.00038356,120]
[336742516,1725096068219,-954.8,0.00038356,120]
[336742517,1725096068266,-961.43,0.00038356,120]
[336742518,1725096068312,-997.06,0.00038356,120]
[336742519,1725096068356,-500.0,0.00038356,120]
[336742520,1725096068402,-500.0,0.00038356,120]
[336742521,1725096068449,-507.58,0.00038356,120]
[336742522,1725096068496,-500.0,0.00038356,120]
[336742523,1725096068543,-996.39,0.00038356,120]
[336742524,1725096068590,-500.0,0.00038356,120]
[336742525,1725096068638,-500.0,0.00038356,120]
[336742526,1725096068689,-500.0,0.00038356,120]
[336742527,1725096068739,-500.0,0.00038356,120]
[336742528,1725096068789,-500.0,0.00038356,120]
[336742529,1725096068839,-500.0,0.00038356,120]
[336742530,1725096068890,-500.0,0.00038356,120]
[336742531,1725096068940,-510.32,0.00038356,120]
[336742532,1725096068990,-615.17,0.00038356,120]
[336742533,1725096069040,-941.17,0.00038356,120]
[336742534,1725096069091,-4187.61,0.00038356,120]
[336742535,1725096069144,-10782.5,0.00038356,120]
[336742536,1725096069195,-500.0,0.00038356,120]
[336742537,1725096069245,-500.0,0.00038356,120]
[336742538,1725096069449,-591.64,0.00038356,120]
[336742539,1725096069502,-500.0,0.00038356,120]
[336742540,1725096069551,-500.0,0.00038356,120]
[336742541,1725096069599,-500.0,0.00038356,120]
[336742542,1725096069647,-519.14,0.00038356,120]
[336742543,1725096069696,-675.23,0.00038356,120]
[336742544,1725096069746,-653.02,0.00038356,120]
[336742545,1725096069796,-500.0,0.00038356,120]
[336742546,1725096069846,-500.0,0.00038356,120]
[336742547,1725096069896,-500.0,0.00038356,120]
[336742548,1725096069946,-1228.8,0.00038356,120]
[336742549,1725096069998,-557.32,0.00038356,120]
[336742550,1725096070048,-500.0,0.00038356,120]
[336742551,1725096070100,-1015.85,0.00038356,120]
[336742552,1725096070152,-500.0,0.00038356,120]
[336742553,1725096070201,-1823.12,0.00038356,120]
[336742554,1725096070251,-2186.95,0.00038356,120]
[336742555,1725096070299,-652.33,0.00038356,120]
[336742556,1725096070347,-702.23,0.00038356,120]
[336742557,1725096070393,-2082.61,0.00038356,120]
[336742558,1725096070445,-500.0,0.00038356,120]
[336742559,1725096070495,-500.0,0.00038356,120]
[336742560,1725096070543,-500.0,0.00038356,120]
[336742561,1725096070591,-500.0,0.00038356,120]
[336742562,1725096070638,-694.0,0.00038356,120]
[336742563,1725096070686,-500.0,0.00038356,120]
[336742564,1725096070734,-997.15,0.00038356,120]
[336742565,1725096070781,-604.52,0.00038356,120]
[336742566,1725096070829,-501.24,0.00038356,120]
[336742567,1725096070879,-831.62,0.00038356,120]
[336742568,1725096070928,-500.0,0.00038356,120]
[336742569,1725096070978,-835.51,0.00038356,120]
[336742570,1725096071026,-762.21,0.00038356,120]
[336742571,1725096071073,-6300.15,0.00038356,120]
[336742572,1725096071119,-887.91,0.00038356,120]
[336742573,1725096071165,-500.0,0.00038356,120]
[336742574,1725096071212,-282.38468889,0.00038356,120]
[336742575,1725096071261,-616.7862104,0.00038356,120]
[336742576,1725096071310,-500.0,0.00038356,120]
[336742577,1725096071358,-593.65,0.00038356,120]
[336742578,1725096071407,-500.0,0.00038356,120]
[336742579,1725096071456,-4114.25,0.00038356,120]
[336742580,1725096071503,-636.31,0.00038356,120]
[336742581,1725096071554,-11442.62,0.00038356,120]
[336742582,1725096071608,-564.38,0.00038356,120]
[336742583,1725096071660,-500.0,0.00038356,120]
[336742584,1725096071708,-500.0,0.00038356,120]
[336742585,1725096071756,-500.0,0.00038356,120]
[336742586,1725096071802,-500.0,0.00038356,120]
[336742587,1725096071853,-1161.84,0.00038356,120]
[336742588,1725096071901,-588.17,0.00038356,120]
[336742589,1725096071950,-1654.38,0.00038356,120]
[336742590,1725096072000,-1647.2,0.00038356,120]
[336742591,1725096072051,-500.0,0.00038356,120]
[336742592,1725096072099,-500.0,0.00038356,120]
[336742593,1725096072149,-874.76,0.00038356,120]
[336742594,1725096072200,-1031.07,0.00038356,120]
[336742595,1725096072247,-500.0,0.00038356,120]
[336742596,1725096072295,-1806.46,0.00038356,120]
[336742597,1725096072344,-1786.04,0.00038356,120]
[336742598,1725096072392,-500.0,0.00038356,120]
[336742599,1725096072438,-796.11,0.00038356,120]
[336742600,1725096072487,-4060.92,0.00038356,120]
[336742601,1725096072536,-1529.27,0.00038356,120]
[336742602,1725096072585,-764.48,0.00038356,120]
[336742603,1725096072632,-2246.61,0.00038356,120]
[336742604,1725096072678,-2118.38,0.00038356,120]
[336742605,1725096072722,-817.1,0.00038356,120]
[336742606,1725096072768,-500.0,0.00038356,120]
[336742607,1725096072817,-2580.32,0.00038356,120]
[336742608,1725096072866,-602.83,0.00038356,120]
[336742609,1725096072912,-2730.58,0.00038356,120]
[336742610,1725096072961,-567.84,0.00038356,120]
[336742611,1725096073006,-906.16,0.00038356,120]
[336742612,1725096073051,-881.66,0.00038356,120]
[336742613,1725096073095,-609.32134859,0.00038356,120]
[336742614,1725096073141,-6580.53,0.00038356,120]
[336742615,1725096073185,-500.0,0.00038356,120]
[336742616,1725096073230,-776.12,0.00038356,120]
[336742617,1725096073275,-3133.75,0.00038356,120]
[336742618,1725096073324,-1318.72,0.00038356,120]
[336742619,1725096073369,-500.0,0.00038356,120]
[336742620,1725096073414,-3220.73,0.00038356,120]
[336742621,1725096073459,-512.71,0.00038356,120]
[336742622,1725096073507,-500.0,0.00038356,120]
[336742623,1725096073554,-924.45,0.00038356,120]
[336742624,1725096073601,-429.02864965,0.00038356,120]
[336742625,1725096073650,-1223.28,0.00038356,120]
[336742626,1725096073700,-1129.99,0.00038356,120]
[336742627,1725096073746,-500.0,0.00038356,120]
[336742628,1725096073792,-608.6,0.00038356,120]
[336742629,1725096073838,-1166.67,0.00038356,120]
[336742630,1725096073885,-500.0,0.00038356,120]
[336742631,1725096073932,-500.0,0.00038356,120]
[336742632,1725096073981,-18433.68,0.00038356,120]
[336742633,1725096074030,-1392.73,0.00038356,120]
[336742634,1725096074077,-177.53861694,0.00038356,120]
[336742635,1725096074125,-1402.0,0.00038356,120]
[336742636,1725096074172,-9146.0,0.00038356,120]
[336742637,1725096074219,-1370.15,0.00038356,120]
[336742638,1725096074266,-841.44,0.00038356,120]
[336742639,1725096074313,-500.0,0.00038904,120]
[336742640,1725096074361,-761.33,0.00038904,120]
[336742641,1725096074408,-500.0,0.00038904,120]
[336742642,1725096074456,-500.0,0.00038904,120]
[336742643,1725096074659,-500.0,0.00038904,120]
[336742644,1725096074711,-500.0,0.00038904,120]
[336742645,1725096074763,-728.45,0.00038904,120]
[336742646,1725096074813,-500.0,0.00038904,120]
[336742647,1725096074863,-500.0,0.00038904,120]
[336742648,1725096074910,-500.0,0.00038904,120]
[336742649,1725096074960,-602.57,0.00038904,120]
[336742650,1725096075008,-500.0,0.00038904,120]
[336742651,1725096075055,-500.0,0.00038904,120]
[336742652,1725096075106,-1536.81,0.00038904,120]
[336742653,1725096075153,-500.0,0.00038904,120]
[336742654,1725096075200,-500.0,0.00038904,120]
[336742655,1725096075245,-718.45,0.00038904,120]
[336742656,1725096075292,-613.86,0.00038904,120]
[336742657,1725096075337,-500.0,0.00038904,120]
[336742658,1725096075383,-737.5,0.00038904,120]
[336742659,1725096075430,-500.0,0.00038904,120]
[336742660,1725096075476,-500.0,0.00038904,120]
[336742661,1725096075521,-500.0,0.00038904,120]
[336742662,1725096075567,-500.0,0.00038904,120]
[336742663,1725096075618,-500.0,0.00038904,120]
[336742664,1725096075666,-500.0,0.00038904,120]
[336742665,1725096075711,-854.52,0.00038904,120]
[336742666,1725096075754,-500.0,0.00038904,120]
[336742667,1725096075797,-500.0,0.00038904,120]
[336742668,1725096075840,-500.0,0.00038904,120]
[336742669,1725096075886,-500.0,0.00038904,120]
[336742670,1725096075930,-500.0,0.00038904,120]
[336742671,1725096075976,-500.0,0.00038904,120]
[336742672,1725096076024,-500.0,0.00038904,120]
[336742673,1725096076069,-504.81,0.00038904,120]
[336742674,1725096076115,-500.0,0.00038904,120]
[336742675,1725096076161,-500.0,0.00038904,120]
[336742676,1725096076207,-577.66,0.00038904,120]
[336742677,1725096076252,-500.0,0.00038904,120]
[336742678,1725096076296,-537.13,0.00038904,120]
[336742679,1725096076340,-500.0,0.00038904,120]
[336742680,1725096076384,-639.49,0.00038904,120]
[336742681,1725096076431,-500.0,0.00038904,120]
[336742682,1725096076481,-500.0,0.00038904,120]
[336742683,1725096076527,-500.0,0.00038904,120]
[336742684,1725096076573,-558.16,0.00038904,120]
[336742685,1725096076623,-500.0,0.00038904,120]
[336742686,1725096076671,-500.0,0.00038904,120]
[336742687,1725096076720,-500.0,0.00038904,120]
[336742688,1725096076768,-606.69,0.00038904,120]
[336742689,1725096076815,-500.0,0.00038904,120]
[336742690,1725096076862,-500.0,0.00038904,120]
[336742691,1725096076909,-500.0,0.00038904,120]
[336742692,1725096076954,-500.0,0.00038904,120]
[336742693,1725096077001,-500.0,0.00038904,120]
[336742694,1725096077049,-500.0,0.00038904,120]
[336742695,1725096077100,-500.06,0.00038904,120]
[336742696,1725096077151,-533.19,0.00038904,120]
[336742697,1725096077201,-781.37,0.00038904,120]
[336742698,1725096077251,-500.0,0.00038904,120]
[336742699,1725096077299,-500.0,0.00038904,120]
[336742700,1725096077345,-541.93,0.00038904,120]
[336742701,1725096077390,-500.0,0.00038904,120]
[336742702,1725096077438,-541.84,0.00038904,120]
[336742703,1725096077483,-500.0,0.00038904,120]
[336742704,1725096077530,-500.0,0.00038904,120]
[336742705,1725096077575,-500.0,0.00038904,120]
[336742706,1725096077620,-500.0,0.00038904,120]
[336742707,1725096077664,-366.03263792,0.00038904,120]
[336742708,1725096077708,-500.0,0.00038904,120]
[336742709,1725096077750,-500.0,0.00038904,120]
[336742710,1725096077794,-543.31293598,0.00038904,120]
[336742711,1725096077842,-500.0,0.00038904,120]
[336742712,1725096077889,-446.47084108,0.00038904,120]
[336742713,1725096077935,-478.62448572,0.00038904,120]
[336742714,1725096077979,-500.0,0.00038904,120]
[336742715,1725096078023,-838.09,0.00038904,120]
[336742716,1725096078067,-500.0,0.00038904,120]
[336742717,1725096078113,-500.0,0.00038904,120]
[336742718,1725096078161,-500.0,0.00038904,120]
[336742719,1725096078208,-509.55,0.00038904,120]
[336742720,1725096078253,-500.0,0.00038904,120]
[336742721,1725096078299,-500.0,0.00038904,120]
[336742722,1725096078347,-500.0,0.00038904,120]
[336742723,1725096078396,-708.98,0.00038904,120]
[336742724,1725096078445,-500.0,0.00038904,120]
[336742725,1725096078496,-500.0,0.00038904,120]
[336742726,1725096078553,-500.0,0.00038904,120]
[336742727,1725096078605,-1509.98,0.00038904,120]
[336742728,1725096078654,-558.78,0.00038904,120]
[336742729,1725096078703,-500.0,0.00038904,120]
[336742730,1725096078753,-1624.06,0.00038904,120]
[336742731,1725096078800,-500.0,0.00038904,120]
[336742732,1725096078847,-500.0,0.00038904,120]
[336742733,1725096078893,-500.0,0.00038904,120]
[336742734,1725096078939,-640.25,0.00038904,120]
[336742735,1725096078986,-500.0,0.00038904,120]
[336742736,1725096079034,-934.21,0.00038904,120]
[336742737,1725096079080,-969.88,0.00038904,120]
[336742738,1725096079126,-791.62,0.00038904,120]
[336742739,1725096079174,-915.31,0.00038904,120]
[336742740,1725096079221,-500.0,0.00038904,120]
[336742741,1725096079269,-1688.13,0.00038904,120]
[336742742,1725096079316,-506.18754462,0.00038904,120]
[336742743,1725096079363,-616.66,0.00038904,120]
[336742744,1725096079409,-500.0,0.00038904,120]
[336742745,1725096079457,-777.63,0.00038904,120]
[336742746,1725096079652,-1310.98,0.00038904,120]
[336742747,1725096079711,-875.1,0.00038904,120]
[336742748,1725096079761,-1032.09,0.00038904,120]
[336742749,1725096079812,-2876.73,0.00038904,120]
[336742750,1725096079863,-761.85,0.00038904,120]
[336742751,1725096079914,-294.36236811,0.00038904,120]
[336742752,1725096079966,-1344.34,0.00038904,120]
[336742753,1725096080016,-607.66539472,0.00038904,120]
[336742754,1725096080070,-500.0,0.00038904,120]
[336742755,1725096080121,-500.0,0.00038904,120]
[336742756,1725096080176,-4839.39,0.00038904,120]
[336742757,1725096080225,-500.0,0.00038904,120]
[336742758,1725096080274,-334.20410606,0.00038904,120]
[336742759,1725096080321,-343.63701245,0.00038904,120]
[336742760,1725096080371,-1399.41,0.00038904,120]
[336742761,1725096080419,-500.0,0.00038904,120]
[336742762,1725096080468,-588.48,0.00038904,120]
[336742763,1725096080516,-500.0,0.00038904,120]
[336742764,1725096080562,-500.0,0.00038904,120]
[336742765,1725096080613,-500.0,0.00038904,120]
[336742766,1725096080664,-500.0,0.00038904,120]
[336742767,1725096080715,-559.89,0.00038904,120]
[336742768,1725096080762,-500.0,0.00038904,120]
[336742769,1725096080812,-500.0,0.00038904,120]
[336742770,1725096080863,-416.71566195,0.00038904,120]
[336742771,1725096080913,-500.0,0.00038904,120]
[336742772,1725096080963,-511.74,0.00038904,120]
[336742773,1725096081010,-500.0,0.00038904,120]
[336742774,1725096081056,-500.0,0.00038904,120]
[336742775,1725096081102,-500.0,0.00038904,120]
[336742776,1725096081147,-500.0,0.00038904,120]
[336742777,1725096081193,-1112.54,0.00038904,120]
[336742778,1725096081239,-500.0,0.00038904,120]
[336742779,1725096081285,-500.0,0.00038904,120]
[336742780,1725096081330,-500.0,0.00038904,120]
[336742781,1725096081377,-508.19,0.00038904,120]
[336742782,1725096081426,-2558.51,0.00038904,120]
[336742783,1725096081473,-500.0,0.00038904,120]
[336742784,1725096081521,-500.0,0.00038904,120]
[336742785,1725096081565,-500.0,0.00038904,120]
[336742786,1725096081610,-500.0,0.00038904,120]
[336742787,1725096081656,-500.0,0.00038904,120]
[336742788,1725096081702,-694.5,0.00038904,120]
[336742789,1725096081749,-500.0,0.00038904,120]
[336742790,1725096081796,-923.73,0.00038904,120]
[336742791,1725096081842,-500.0,0.00038904,120]
[336742792,1725096081891,-1446.32,0.00038904,120]
[336742793,1725096081937,-500.0,0.00038904,120]
[336742794,1725096081983,-187.87050196,0.00038904,120]
[336742795,1725096082031,-1350.52,0.00038904,120]
[336742796,1725096082080,-500.0,0.00038904,120]
[336742797,1725096082131,-1170.8,0.00038904,120]
[336742798,1725096082182,-618.91,0.00038904,120]
[336742799,1725096082230,-500.0,0.00038904,120]
[336742800,1725096082283,-500.0,0.00038904,120]
[336742801,1725096082336,-3324.83,0.00038904,120]
[336742802,1725096082386,-1273.21,0.00038904,120]
[336742803,1725096082438,-500.0,0.00038904,120]
[336742804,1725096082488,-2000.0,0.00038904,120]
[336742805,1725096082538,-500.0,0.00038904,120]
[336742806,1725096082591,-1114.0,0.00038904,120]
[336742807,1725096082642,-1256.51,0.00038904,120]
[336742808,1725096082690,-1913.46,0.00038904,120]
[336742809,1725096082737,-500.0,0.00038904,120]
[336742810,1725096082784,-1221.34,0.00038904,120]
[336742811,1725096082830,-500.0,0.00038904,120]
[336742812,1725096082877,-500.0,0.00038904,120]
[336742813,1725096082922,-500.0,0.00038904,120]
[336742814,1725096082966,-500.0,0.00038904,120]
[336742815,1725096083011,-1287.93,0.00038904,120]
[336742816,1725096083054,-500.0,0.00038904,120]
[336742817,1725096083099,-500.0,0.00038904,120]
[336742818,1725096083143,-500.0,0.00038904,120]
[336742819,1725096083186,-925.06,0.00038904,120]
[336742820,1725096083230,-500.0,0.00038904,120]
[336742821,1725096083276,-170.04227011,0.00038904,120]
[336742822,1725096083320,-500.0,0.00038904,120]
[336742823,1725096083367,-500.0,0.00038904,120]
[336742824,1725096083413,-500.0,0.00038904,120]
[336742825,1725096083458,-548.88,0.00038904,120]
[336742826,1725096083502,-775.46,0.00038904,120]
[336742827,1725096083552,-1018.59,0.00038904,120]
[336742828,1725096083598,-540.19,0.00038904,120]
[336742829,1725096083648,-1162.77,0.00038904,120]
[336742830,1725096083694,-588.08145007,0.00038904,120]
[336742831,1725096083742,-500.0,0.00038904,120]
[336742832,1725096083787,-500.0,0.00038904,120]
[336742833,1725096083835,-500.0,0.00038904,120]
[336742834,1725096083879,-2066.04,0.00038904,120]
[336742835,1725096083925,-500.0,0.00038904,120]
[336742836,1725096083972,-500.0,0.00038904,120]
[336742837,1725096084018,-500.0,0.00038904,120]
[336742838,1725096084065,-500.0,0.00038904,120]
[336742839,1725096084112,-500.0,0.00038904,120]
[336742840,1725096084160,-560.26447634,0.00038904,120]
[336742841,1725096084208,-721.89,0.00038904,120]
[336742842,1725096084256,-500.0,0.00038904,120]
[336742843,1725096084304,-500.0,0.00038904,120]
[336742844,1725096084350,-666.61,0.00038904,120]
[336742845,1725096084398,-1547.45,0.00038904,120]
[336742846,1725096084448,-500.0,0.00038904,120]
[336742847,1725096084497,-598.25,0.00038904,120]
[336742848,1725096084543,-558.12,0.00038904,120]
[336742849,1725096084592,-643.08,0.00038904,120]
[336742850,1725096084813,-585.19,0.00038904,120]
[336742851,1725096084865,-2179.7,0.00038904,120]
[336742852,1725096084915,-777.19,0.00038904,120]
[336742853,1725096084963,-500.0,0.00038904,120]
[336742854,1725096085010,-500.0,0.00038904,120]
[336742855,1725096085060,-2274.45,0.00038904,120]
[336742856,1725096085106,-500.0,0.00038904,120]
[336742857,1725096085153,-635.42,0.00038904,120]
[336742858,1725096085198,-500.0,0.00038904,120]
[336742859,1725096085243,-868.12,0.00038904,120]
[336742860,1725096085287,-500.0,0.00038904,120]
[336742861,1725096085332,-500.0,0.00038904,120]
[336742862,1725096085379,-1151.6,0.00038904,120]
[336742863,1725096085425,-562.37,0.00038904,120]
[336742864,1725096085472,-1582.23,0.00038904,120]
[336742865,1725096085523,-867.17,0.00038904,120]
[336742866,1725096085575,-1256.91,0.00038904,120]
[336742867,1725096085623,-500.0,0.00038904,120]
[336742868,1725096085670,-500.0,0.00038904,120]
[336742869,1725096085720,-500.0,0.00038904,120]
[336742870,1725096085769,-500.0,0.00038904,120]
[336742871,1725096085818,-735.6,0.00038904,120]
[336742872,1725096085869,-2186.79,0.00038904,120]
[336742873,1725096085919,-680.15,0.00038904,120]
[336742874,1725096085970,-4740.51,0.00038904,120]
[336742875,1725096086019,-500.0,0.00038904,120]
[336742876,1725096086066,-601.44,0.00038904,120]
[336742877,1725096086117,-786.8,0.00038904,120]
[336742878,1725096086166,-12860.68,0.00038904,120]
[336742879,1725096086216,-500.0,0.00038904,120]
[336742880,1725096086266,-834.67,0.00038904,120]
[336742881,1725096086316,-500.0,0.00038904,120]
[336742882,1725096086366,-500.0,0.00038904,120]
[336742883,1725096086418,-500.0,0.00038904,120]
[336742884,1725096086469,-500.0,0.00038904,120]
[336742885,1725096086520,-954.8,0.00038904,120]
[336742886,1725096086573,-961.43,0.00038904,120]
[336742887,1725096086624,-997.06,0.00038904,120]
[336742888,1725096086676,-500.0,0.00038904,120]
[336742889,1725096086730,-500.0,0.00038904,120]
[336742890,1725096086781,-507.58,0.00038904,120]
[336742891,1725096086835,-500.0,0.00038904,120]
[336742892,1725096086886,-996.39,0.00038904,120]
[336742893,1725096086936,-467.34680058,0.00038904,120]
[336742894,1725096086987,-500.0,0.00038904,120]
[336742895,1725096087040,-500.0,0.00038904,120]
[336742896,1725096087092,-515.4898371,0.00038904,120]
[336742897,1725096087144,-500.0,0.00038904,120]
[336742898,1725096087195,-500.0,0.00038904,120]
[336742899,1725096087245,-500.0,0.00038904,120]
[336742900,1725096087299,-510.32,0.00038904,120]
[336742901,1725096087350,-615.17,0.00038904,120]
[336742902,1725096087400,-941.17,0.00038904,120]
[336742903,1725096087451,-4187.61,0.00038904,120]
[336742904,1725096087501,-10782.5,0.00038904,120]
[336742905,1725096087550,-500.0,0.00038904,120]
[336742906,1725096087599,-500.0,0.00038904,120]
[336742907,1725096087647,-591.64,0.00038904,120]
[336742908,1725096087695,-500.0,0.00038904,120]
[336742909,1725096087746,-500.0,0.00038904,120]
[336742910,1725096087794,-500.0,0.00038904,120]
[336742911,1725096087842,-519.14,0.00038904,120]
[336742912,1725096087891,-675.23,0.00038904,120]
[336742913,1725096087940,-653.02,0.00038904,120]
[336742914,1725096087988,-500.0,0.00038904,120]
[336742915,1725096088035,-500.0,0.00038904,120]
[336742916,1725096088081,-500.0,0.00038904,120]
[336742917,1725096088127,-1228.8,0.00038904,120]
[336742918,1725096088174,-557.32,0.00038904,120]
[336742919,1725096088221,-500.0,0.00038904,120]
[336742920,1725096088269,-1015.85,0.00038904,120]
[336742921,1725096088317,-500.0,0.00038904,120]
[336742922,1725096088365,-1823.12,0.00038904,120]
[336742923,1725096088413,-2186.95,0.00038904,120]
[336742924,1725096088463,-652.33,0.00038904,120]
[336742925,1725096088511,-702.23,0.00038904,120]
[336742926,1725096088561,-2082.61,0.00038904,120]
[336742927,1725096088612,-500.0,0.00038904,120]
[336742928,1725096088663,-500.0,0.00038904,120]
[336742929,1725096088711,-500.0,0.00038904,120]
[336742930,1725096088759,-500.0,0.00038904,120]
[336742931,1725096088808,-694.0,0.00038904,120]
[336742932,1725096088856,-500.0,0.00038904,120]
[336742933,1725096088904,-997.15,0.00038904,120]
[336742934,1725096088953,-604.52,0.00038904,120]
[336742935,1725096089002,-501.24,0.00038904,120]
[336742936,1725096089049,-500.0,0.00038904,120]
[336742937,1725096089097,-831.62,0.00038904,120]
[336742938,1725096089146,-835.51,0.00038904,120]
[336742939,1725096089193,-762.21,0.00038904,120]
[336742940,1725096089239,-6300.15,0.00038904,120]
[336742941,1725096089287,-887.91,0.00038904,120]
[336742942,1725096089333,-500.0,0.00038904,120]
[336742943,1725096089379,-500.0,0.00038904,120]
[336742944,1725096089425,-593.65,0.00038904,120]
[336742945,1725096089472,-500.0,0.00038904,120]
[336742946,1725096089519,-4114.25,0.00038904,120]
[336742947,1725096089567,-636.31,0.00038904,120]
[336742948,1725096089616,-11442.62,0.00038904,120]
[336742949,1725096089668,-564.38,0.00038904,120]
[336742950,1725096089716,-500.0,0.00038904,120]
[336742951,1725096089765,-500.0,0.00038904,120]
[336742952,1725096089812,-500.0,0.00038904,120]
[336742953,1725096089861,-500.0,0.00038904,120]
[336742954,1725096090063,-1161.84,0.00038904,120]
[336742955,1725096090110,-588.17,0.00038904,120]
[336742956,1725096090155,-1654.38,0.00038904,120]
[336742957,1725096090198,-1647.2,0.00038904,120]
[336742958,1725096090242,-500.0,0.00038904,120]
[336742959,1725096090284,-500.0,0.00038904,120]
[336742960,1725096090328,-874.76,0.00038904,120]
[336742961,1725096090375,-1031.07,0.00038904,120]
[336742962,1725096090423,-500.0,0.00038904,120]
[336742963,1725096090470,-1806.46,0.00038904,120]
[336742964,1725096090518,-1786.04,0.00038904,120]
[336742965,1725096090565,-500.0,0.00038904,120]
[336742966,1725096090612,-796.11,0.00038904,120]
[336742967,1725096090660,-4060.92,0.00038904,120]
[336742968,1725096090704,-1529.27,0.00038904,120]
[336742969,1725096090751,-764.48,0.00038904,120]
[336742970,1725096090796,-2246.61,0.00038904,120]
[336742971,1725096090840,-2118.38,0.00038904,120]
[336742972,1725096090885,-817.1,0.00038904,120]
[336742973,1725096090930,-500.0,0.00038904,120]
[336742974,1725096090977,-2580.32,0.00038904,120]
[336742975,1725096091022,-602.83,0.00038904,120]
[336742976,1725096091068,-2730.58,0.00038904,120]
[336742977,1725096091113,-567.84,0.00038904,120]
[336742978,1725096091160,-906.16,0.00038904,120]
[336742979,1725096091205,-881.66,0.00038904,120]
[336742980,1725096091253,-6580.53,0.00038904,120]
[336742981,1725096091300,-500.0,0.00038904,120]
[336742982,1725096091349,-776.12,0.00038904,120]
[336742983,1725096091400,-3133.75,0.00038904,120]
[336742984,1725096091453,-1318.72,0.00038904,120]
[336742985,1725096091504,-500.0,0.00038904,120]
[336742986,1725096091556,-3220.73,0.00038904,120]